fUST/lending_fUST_20240918
["ID","MTS","AMOUNT","RATE_DAILY","PERIOD"]
[338436145,1726637446481,-559.61,0.00019178,2]
[338436146,1726637446491,-980.84,0.00019178,2]
[338436147,1726637446503,-500.0,0.00019178,2]
[338436148,1726637446513,-513.2510045,0.00019178,2]
[338436149,1726637446523,-500.0,0.00019178,2]
[338436150,1726637446533,-500.0,0.00019178,2]
[338436151,1726637446542,-705.18,0.00019178,2]
[338436152,1726637446552,-500.0,0.00019178,2]
[338436153,1726637446562,-2551.82,0.00019178,2]
[338436154,1726637446571,-151.0,0.00019178,2]
[338436155,1726637446580,-151.0,0.00019178,2]
[338436156,1726637446590,-630.61229126,0.00019178,2]
[338436157,1726637446599,-2479.98,0.00019178,2]
[338436158,1726637446609,-500.0,0.00019178,2]
[338436159,1726637446618,-500.0,0.00019178,2]
[338436160,1726637446627,-500.0,0.00019178,2]
[338436161,1726637446637,-500.0,0.00019178,2]
[338436162,1726637446646,-1400.25,0.00019178,2]
[338436163,1726637446656,-500.0,0.00019178,2]
[338436164,1726637446665,-500.0,0.00019178,2]
[338436165,1726637446674,-2641.74,0.00019178,2]
[338436166,1726637446683,-2459.19,0.00019178,2]
[338436167,1726637446693,-1135.1,0.00019178,2]
[338436168,1726637446702,-500.0,0.00019178,2]
[338436169,1726637446712,-1259.46,0.00019178,2]
[338436170,1726637446721,-178.345866,0.00019178,2]
[338436171,1726637446730,-178.345866,0.00019178,2]
[338436172,1726637446739,-178.345866,0.00019178,2]
[338436173,1726637446748,-500.0,0.00019178,2]
[338436174,1726637446757,-178.345866,0.00019178,2]
[338436175,1726637446770,-500.0,0.00019178,2]
[338436176,1726637446780,-500.0,0.00019178,2]
[338436177,1726637446789,-210.2631478,0.00019178,2]
[338436178,1726637446798,-500.0,0.00019178,2]
[338436179,1726637446807,-500.0,0.00019178,2]
[338436180,1726637446817,-500.0,0.00019178,2]
[338436181,1726637446826,-151.0,0.00019178,2]
[338436182,1726637446835,-151.0,0.00019178,2]
[338436183,1726637446846,-500.0,0.00019178,2]
[338436184,1726637446855,-500.0,0.00019178,2]
[338436185,1726637446864,-155.562212,0.00019178,2]
[338436186,1726637446874,-500.0,0.00019178,2]
[338436187,1726637446884,-1792.34,0.00019178,2]
[338436188,1726637446893,-500.0,0.00019178,2]
[338436189,1726637446902,-500.0,0.00019178,2]
[338436190,1726637446911,-500.0,0.00019178,2]
[338436191,1726637446920,-500.0,0.00019178,2]
[338436192,1726637446930,-500.0,0.00019178,2]
[338436193,1726637446939,-463.91101565,0.00019178,2]
[338436194,1726637446948,-500.0,0.00019178,2]
[338436195,1726637446959,-500.0,0.00019178,2]
[338436196,1726637446970,-805.17,0.00019178,2]
[338436197,1726637446982,-1581.35,0.00019178,2]
[338436198,1726637446992,-500.0,0.00019178,2]
[338436199,1726637447002,-500.0,0.00019178,2]
[338436200,1726637447013,-151.0,0.00019178,2]
[338436201,1726637447024,-151.0,0.00019178,2]
[338436202,1726637447035,-500.0,0.00019178,2]
[338436203,1726637447045,-151.0,0.00019178,2]
[338436204,1726637447054,-151.0,0.00019178,2]
[338436205,1726637447064,-604.25,0.00019178,2]
[338436206,1726637447074,-1254.09,0.00019178,2]
[338436207,1726637447084,-2026.74,0.00019178,2]
[338436208,1726637447094,-500.0,0.00019178,2]
[338436209,1726637447105,-2266.95,0.00019178,2]
[338436210,1726637447115,-2223.46,0.00019178,2]
[338436211,1726637447125,-891.22,0.00019178,2]
[338436212,1726637447135,-151.0,0.00019178,2]
[338436213,1726637447146,-151.0,0.00019178,2]
[338436214,1726637447157,-1300.18,0.00019178,2]
[338436215,1726637447167,-500.0,0.00019178,2]
[338436216,1726637447179,-1645.83,0.00019178,2]
[338436217,1726637447190,-500.0,0.00019178,2]
[338436218,1726637447202,-10328.85,0.00019178,2]
[338436219,1726637447212,-151.0,0.00019178,2]
[338436220,1726637447223,-151.0,0.00019178,2]
[338436221,1726637447235,-500.0,0.00019178,2]
[338436222,1726637447247,-500.0,0.00019178,2]
[338436223,1726637447267,-500.0,0.00019178,2]
[338436224,1726637447279,-976.1,0.00019178,2]
[338436225,1726637447289,-734.12,0.00019178,2]
[338436226,1726637447298,-500.0,0.00019178,2]
[338436227,1726637447308,-500.0,0.00019178,2]
[338436228,1726637447320,-500.0,0.00019178,2]
[338436229,1726637447330,-500.0,0.00019178,2]
[338436230,1726637447339,-699.61,0.00019178,2]
[338436231,1726637447350,-500.0,0.00019178,2]
[338436232,1726637447361,-500.0,0.00019178,2]
[338436233,1726637447372,-205.875145,0.00019178,2]
[338436234,1726637447383,-547.78,0.00019178,2]
[338436235,1726637447392,-205.875145,0.00019178,2]
[338436236,1726637447402,-3343.52,0.00019178,2]
[338436237,1726637447413,-1168.07,0.00019178,2]
[338436238,1726637447423,-500.0,0.00019178,2]
[338436239,1726637447433,-500.0,0.00019178,2]
[338436240,1726637447444,-500.0,0.00019178,2]
[338436241,1726637447454,-500.0,0.00019178,2]
[338436242,1726637447466,-500.0,0.00019178,2]
[338436243,1726637447476,-205.875145,0.00019178,2]
[338436244,1726637447485,-500.0,0.00019178,2]
[338436245,1726637447498,-205.875145,0.00019178,2]
[338436246,1726637447510,-500.0,0.00019178,2]
[338436247,1726637447522,-500.0,0.00019178,2]
[338436248,1726637447534,-500.0,0.00019178,2]
[338436249,1726637447544,-500.0,0.00019178,2]
[338436250,1726637447554,-922.64,0.00019178,2]
[338436251,1726637447565,-500.0,0.00019178,2]
[338436252,1726637447576,-631.95,0.00019178,2]
[338436253,1726637447586,-500.0,0.00019178,2]
[338436254,1726637447595,-973.49,0.00019178,2]
[338436255,1726637447604,-500.0,0.00019178,2]
[338436256,1726637447614,-500.0,0.00019178,2]
[338436257,1726637447624,-802.98,0.00019178,2]
[338436258,1726637447633,-500.0,0.00019178,2]
[338436259,1726637447643,-500.0,0.00019178,2]
[338436260,1726637447652,-500.0,0.00019178,2]
[338436261,1726637447661,-500.0,0.00019178,2]
[338436262,1726637447671,-485.25618046,0.00019178,2]
[338436263,1726637447681,-500.0,0.00019178,2]
[338436264,1726637447692,-500.0,0.00019178,2]
[338436265,1726637447703,-500.0,0.00019178,2]
[338436266,1726637447714,-500.0,0.00019178,2]
[338436267,1726637447725,-1666.21,0.00019178,2]
[338436268,1726637447735,-2247.0,0.00019178,2]
[338436269,1726637447750,-969.3,0.00019178,2]
[338436270,1726637447764,-500.0,0.00019178,2]
[338436271,1726637447773,-853.76,0.00019178,2]
[338436272,1726637447783,-500.0,0.00019178,2]
[338436273,1726637447792,-1084.07,0.00019178,2]
[338436274,1726637447802,-151.0,0.00019178,2]
[338436275,1726637447811,-151.0,0.00019178,2]
[338436276,1726637447820,-500.0,0.00019178,2]
[338436277,1726637447829,-500.0,0.00019178,2]
[338436278,1726637447839,-500.0,0.00019178,2]
[338436279,1726637447848,-1782.56,0.00019178,2]
[338436280,1726637447857,-500.0,0.00019178,2]
[338436281,1726637447867,-6050.51,0.00019178,2]
[338436282,1726637447876,-1583.15,0.00019178,2]
[338436283,1726637447885,-500.0,0.00019178,2]
[338436284,1726637447895,-500.0,0.00019178,2]
[338436285,1726637447903,-552.58,0.00019178,2]
[338436286,1726637447912,-500.0,0.00019178,2]
[338436287,1726637447924,-1026.26,0.00019178,2]
[338436288,1726637447934,-500.0,0.00019178,2]
[338436289,1726637447944,-4321.59,0.00019178,2]
[338436290,1726637447954,-500.0,0.00019178,2]
[338436291,1726637447964,-500.0,0.00019178,2]
[338436292,1726637447975,-500.0,0.00019178,2]
[338436293,1726637447986,-500.0,0.00019178,2]
[338436294,1726637447997,-3428.87,0.00019178,2]
[338436295,1726637448007,-5330.16,0.00019178,2]
[338436296,1726637448018,-500.0,0.00019178,2]
[338436297,1726637448027,-500.0,0.00019178,2]
[338436298,1726637448037,-1230.4,0.00019178,2]
[338436299,1726637448047,-500.0,0.00019178,2]
[338436300,1726637448202,-909.73,0.00019178,2]
[338436301,1726637448212,-500.0,0.00019178,2]
[338436302,1726637448222,-1783.01,0.00019178,2]
[338436303,1726637448232,-500.0,0.00019178,2]
[338436304,1726637448242,-500.0,0.00019178,2]
[338436305,1726637448253,-1441.31,0.00019178,2]
[338436306,1726637448264,-665.11,0.00019178,2]
[338436307,1726637448273,-568.94,0.00019178,2]
[338436308,1726637448282,-500.0,0.00019178,2]
[338436309,1726637448293,-2511.81,0.00019178,2]
[338436310,1726637448303,-500.0,0.00019178,2]
[338436311,1726637448313,-500.0,0.00019178,2]
[338436312,1726637448324,-803.81,0.00019178,2]
[338436313,1726637448334,-956.21,0.00019178,2]
[338436314,1726637448345,-500.0,0.00019178,2]
[338436315,1726637448354,-500.0,0.00019178,2]
[338436316,1726637448364,-500.0,0.00019178,2]
[338436317,1726637448374,-570.43579835,0.00019178,2]
[338436318,1726637448384,-500.0,0.00019178,2]
[338436319,1726637448393,-3241.23,0.00019178,2]
[338436320,1726637448402,-500.0,0.00019178,2]
[338436321,1726637448412,-162.160517,0.00019178,2]
[338436322,1726637448421,-500.0,0.00019178,2]
[338436323,1726637448431,-162.160517,0.00019178,2]
[338436324,1726637448441,-500.0,0.00019178,2]
[338436325,1726637448450,-2705.85,0.00019178,2]
[338436326,1726637448460,-10405.41,0.00019178,2]
[338436327,1726637448470,-500.0,0.00019178,2]
[338436328,1726637448479,-500.0,0.00019178,2]
[338436329,1726637448489,-1635.02,0.00019178,2]
[338436330,1726637448498,-162.160517,0.00019178,2]
[338436331,1726637448507,-162.160517,0.00019178,2]
[338436332,1726637448517,-4696.72,0.00019178,2]
[338436333,1726637448526,-500.0,0.00019178,2]
[338436334,1726637448535,-685.6,0.00019178,2]
[338436335,1726637448545,-500.0,0.00019178,2]
[338436336,1726637448554,-1737.26,0.00019178,2]
[338436337,1726637448563,-701.28,0.00019178,2]
[338436338,1726637448572,-500.0,0.00019178,2]
[338436339,1726637448582,-500.0,0.00019178,2]
[338436340,1726637448591,-1312.16,0.00019178,2]
[338436341,1726637448602,-500.0,0.00019178,2]
[338436342,1726637448612,-1579.02,0.00019178,2]
[338436343,1726637448622,-11377.25,0.00019178,2]
[338436344,1726637448632,-500.0,0.00019178,2]
[338436345,1726637448643,-870.326526,0.00019178,2]
[338436346,1726637448653,-870.326526,0.00019178,2]
[338436347,1726637448663,-500.0,0.00019178,2]
[338436348,1726637448672,-500.0,0.00019178,2]
[338436349,1726637448683,-1476.4,0.00019178,2]
[338436350,1726637448693,-500.0,0.00019178,2]
[338436351,1726637448703,-870.326526,0.00019178,2]
[338436352,1726637448712,-870.326526,0.00019178,2]
[338436353,1726637448722,-500.0,0.00019178,2]
[338436354,1726637448733,-789.68,0.00019178,2]
[338436355,1726637448743,-1065.24,0.00019178,2]
[338436356,1726637448754,-500.0,0.00019178,2]
[338436357,1726637448764,-500.0,0.00019178,2]
[338436358,1726637448776,-500.0,0.00019178,2]
[338436359,1726637448786,-2084.84,0.00019178,2]
[338436360,1726637448796,-4000.0,0.00019178,2]
[338436361,1726637448806,-4000.0,0.00019178,2]
[338436362,1726637448817,-500.0,0.00019178,2]
[338436363,1726637448827,-2084.780151,0.00019178,2]
[338436364,1726637448837,-1142.18,0.00019178,2]
[338436365,1726637448849,-500.98752862,0.00019178,2]
[338436366,1726637448858,-500.0,0.00019178,2]
[338436367,1726637448867,-765.73,0.00019178,2]
[338436368,1726637448877,-151.354018,0.00019178,2]
[338436369,1726637448886,-500.0,0.00019178,2]
[338436370,1726637448896,-2520.23,0.00019178,2]
[338436371,1726637448905,-653.01,0.00019178,2]
[338436372,1726637448915,-1683.57,0.00019178,2]
[338436373,1726637448924,-532.59370573,0.00019178,2]
[338436374,1726637448934,-1237.797605,0.00019178,2]
[338436375,1726637448943,-1237.797605,0.00019178,2]
[338436376,1726637448952,-500.0,0.00019178,2]
[338436377,1726637448962,-500.0,0.00019178,2]
[338436378,1726637448972,-500.0,0.00019178,2]
[338436379,1726637448981,-500.0,0.00019178,2]
[338436380,1726637448990,-979.58,0.00019178,2]
[338436381,1726637449000,-500.0,0.00019178,2]
[338436382,1726637449009,-500.0,0.00019178,2]
[338436383,1726637449021,-567.1,0.00019178,2]
[338436384,1726637449030,-500.0,0.00019178,2]
[338436385,1726637449040,-500.0,0.00019178,2]
[338436386,1726637449051,-500.0,0.00019178,2]
[338436387,1726637449060,-1237.797605,0.00019178,2]
[338436388,1726637449069,-262.88074097,0.00019178,2]
[338436389,1726637449079,-500.0,0.00019178,2]
[338436390,1726637449088,-1237.797605,0.00019178,2]
[338436391,1726637449097,-1350.41,0.00019178,2]
[338436392,1726637449107,-283.159142,0.00019178,2]
[338436393,1726637449118,-2475.5,0.00019178,2]
[338436394,1726637449128,-881.47,0.00019178,2]
[338436395,1726637449138,-500.0,0.00019178,2]
[338436396,1726637449148,-523.24,0.00019178,2]
[338436397,1726637449158,-2547.63,0.00019178,2]
[338436398,1726637449167,-500.0,0.00019178,2]
[338436399,1726637449177,-339.63620813,0.00019178,2]
[338436400,1726637449187,-500.0,0.00019178,2]
[338436401,1726637449197,-500.0,0.00019178,2]
[338436402,1726637449207,-500.0,0.00019178,2]
[338436403,1726637449218,-1179.8,0.00019178,2]
[338436404,1726637449228,-500.0,0.00019178,2]
[338436405,1726637449238,-500.0,0.00019178,2]
[338436406,1726637449247,-500.0,0.00019178,2]
[338436407,1726637449257,-500.0,0.00019178,2]
[338436408,1726637449267,-151.0,0.00019178,2]
[338436409,1726637449278,-151.0,0.00019178,2]
[338436410,1726637449290,-772.98,0.00019178,2]
[338436411,1726637449299,-2350.51,0.00019178,2]
[338436412,1726637449308,-1468.42,0.00019178,2]
[338436413,1726637449319,-181.02839688,0.00019178,2]
[338436414,1726637449328,-151.0,0.00019178,2]
[338436415,1726637449338,-151.0,0.00019178,2]
[338436416,1726637449347,-500.0,0.00019178,2]
[338436417,1726637449357,-500.0,0.00019178,2]
[338436418,1726637449366,-743.37,0.00019178,2]
[338436419,1726637449376,-844.84,0.00019178,2]
[338436420,1726637449385,-10340.94,0.00019178,2]
[338436421,1726637449396,-500.0,0.00019178,2]
[338436422,1726637449405,-500.0,0.00019178,2]
[338436423,1726637449414,-2571.5,0.00019178,2]
[338436424,1726637449424,-2643.85,0.00019178,2]
[338436425,1726637449434,-500.0,0.00019178,2]
[338436426,1726637449445,-2316.63,0.00019178,2]
[338436427,1726637449454,-500.0,0.00019178,2]
[338436428,1726637449464,-500.0,0.00019178,2]
[338436429,1726637449474,-557.53,0.00019178,2]
[338436430,1726637449483,-5172.52,0.00019178,2]
[338436431,1726637449493,-500.0,0.00019178,2]
[338436432,1726637449503,-1847.86,0.00019178,2]
[338436433,1726637449512,-500.0,0.00019178,2]
[338436434,1726637449521,-151.0,0.00019178,2]
[338436435,1726637449532,-152.101838,0.00019178,2]
[338436436,1726637449542,-152.101838,0.00019178,2]
[338436437,1726637449552,-2377.85,0.00019178,2]
[338436438,1726637449561,-500.0,0.00019178,2]
[338436439,1726637449571,-4575.52,0.00019178,2]
[338436440,1726637449581,-2229.25,0.00019178,2]
[338436441,1726637449590,-500.0,0.00019178,2]
[338436442,1726637449599,-500.0,0.00019178,2]
[338436443,1726637449608,-797.79,0.00019178,2]
[338436444,1726637449619,-500.0,0.00019178,2]
[338436445,1726637449628,-3675.2,0.00019178,2]
[338436446,1726637449638,-500.0,0.00019178,2]
[338436447,1726637449648,-500.0,0.00019178,2]
[338436448,1726637449657,-1425.19,0.00019178,2]
[338436449,1726637449667,-1686.73,0.00019178,2]
[338436450,1726637449678,-505.85601518,0.00019178,2]
[338436451,1726637449688,-152.101838,0.00019178,2]
[338436452,1726637449698,-152.101838,0.00019178,2]
[338436453,1726637449707,-1325.82,0.00019178,2]
[338436454,1726637449717,-976.43,0.00019178,2]
[338436455,1726637449727,-391.88589512,0.00019178,2]
[338436456,1726637449737,-2129.46,0.00019178,2]
[338436457,1726637449747,-526.67,0.00019178,2]
[338436458,1726637449756,-500.0,0.00019178,2]
[338436459,1726637449766,-500.0,0.00019178,2]
[338436460,1726637449776,-500.0,0.00019178,2]
[338436461,1726637449786,-20109.82,0.00019178,2]
[338436462,1726637449796,-500.0,0.00019178,2]
[338436463,1726637449806,-501.69517399,0.00019178,2]
[338436464,1726637449816,-500.0,0.00019178,2]
[338436465,1726637449827,-1896.54,0.00019178,2]
[338436466,1726637449838,-500.0,0.00019178,2]
[338436467,1726637449848,-735.43,0.00019178,2]
[338436468,1726637449859,-522.21529011,0.00019178,2]
[338436469,1726637449868,-655.21,0.00019178,2]
[338436470,1726637449877,-2027.24,0.00019178,2]
[338436471,1726637449886,-2029.26,0.00019178,2]
[338436472,1726637449896,-548.11545847,0.00019178,2]
[338436473,1726637449906,-500.0,0.00019178,2]
[338436474,1726637449918,-778.06,0.00019178,2]
[338436475,1726637449928,-500.0,0.00019178,2]
[338436476,1726637449940,-2202.34,0.00019178,2]
[338436477,1726637449953,-958.96,0.00019178,2]
[338436478,1726637449964,-500.0,0.00019178,2]
[338436479,1726637449976,-1199.35,0.00019178,2]
[338436480,1726637449986,-2522.05,0.00019178,2]
[338436481,1726637449997,-4417.02,0.00019178,2]
[338436482,1726637450006,-500.0,0.00019178,2]
[338436483,1726637450017,-1014.67,0.00019178,2]
[338436484,1726637450027,-500.0,0.00019178,2]
[338436485,1726637450038,-500.0,0.00019178,2]
[338436486,1726637450048,-1573.26,0.00019178,2]
[338436487,1726637450057,-1073.75,0.00019178,2]
[338436488,1726637450066,-500.0,0.00019178,2]
[338436489,1726637450076,-720.21,0.00019178,2]
[338436490,1726637450087,-829.37,0.00019178,2]
[338436491,1726637450098,-500.0,0.00019178,2]
[338436492,1726637450107,-1479.67,0.00019178,2]
[338436493,1726637450116,-500.0,0.00019178,2]
[338436494,1726637450125,-1365.09,0.00019178,2]
[338436495,1726637450135,-500.0,0.00019178,2]
[338436496,1726637450144,-2547.69,0.00019178,2]
[338436497,1726637450154,-836.94,0.00019178,2]
[338436498,1726637450163,-2968.88,0.00019178,2]
[338436499,1726637450173,-500.0,0.00019178,2]
[338436500,1726637450183,-502.83589246,0.00019178,2]
[338436501,1726637450192,-4882.15,0.00019178,2]
[338436502,1726637450201,-500.0,0.00019178,2]
[338436503,1726637450211,-500.0,0.00019178,2]
[338436504,1726637450220,-1502.75,0.00019178,2]
[338436505,1726637450230,-500.0,0.00019178,2]
[338436506,1726637450239,-2478.98,0.00019178,2]
[338436507,1726637450250,-2561.08,0.00019178,2]
[338436508,1726637450259,-500.0,0.00019178,2]
[338436509,1726637450268,-4417.11,0.00019178,2]
[338436510,1726637450278,-500.0,0.00019178,2]
[338436511,1726637450287,-176.78123077,0.00019178,2]
[338436512,1726637450297,-500.0,0.00019178,2]
[338436513,1726637450306,-3014.66,0.00019178,2]
[338436514,1726637450315,-162.081552,0.00019178,2]
[338436515,1726637450324,-1480.75,0.00019178,2]
[338436516,1726637450333,-500.0,0.00019178,2]
[338436517,1726637450342,-1200.43,0.00019178,2]
[338436518,1726637450351,-2412.55,0.00019178,2]
[338436519,1726637450360,-500.0,0.00019178,2]
[338436520,1726637450369,-500.0,0.00019178,2]
[338436521,1726637450378,-500.0,0.00019178,2]
[338436522,1726637450388,-500.0,0.00019178,2]
[338436523,1726637450397,-536.19682184,0.00019178,2]
[338436524,1726637450406,-500.0,0.00019178,2]
[338436525,1726637450415,-1215.15,0.00019178,2]
[338436526,1726637450424,-525.69,0.00019178,2]
[338436527,1726637450433,-500.0,0.00019178,2]
[338436528,1726637450443,-500.0,0.00019178,2]
[338436529,1726637450582,-500.0,0.00019178,2]
[338436530,1726637450592,-739.96,0.00019178,2]
[338436531,1726637450603,-500.0,0.00019178,2]
[338436532,1726637450614,-500.0,0.00019178,2]
[338436533,1726637450627,-500.0,0.00019178,2]
[338436534,1726637450638,-500.0,0.00019178,2]
[338436535,1726637450649,-500.0,0.00019178,2]
[338436536,1726637450662,-500.0,0.00019178,2]
[338436537,1726637450671,-500.0,0.00019178,2]
[338436538,1726637450682,-573.29967654,0.00019178,2]
[338436539,1726637450692,-500.0,0.00019178,2]
[338436540,1726637450703,-500.0,0.00019178,2]
[338436541,1726637450714,-500.0,0.00019178,2]
[338436542,1726637450726,-500.0,0.00019178,2]
[338436543,1726637450736,-500.0,0.00019178,2]
[338436544,1726637450748,-500.0,0.00019178,2]
[338436545,1726637450759,-2852.27,0.00019178,2]
[338436546,1726637450771,-500.0,0.00019178,2]
[338436547,1726637450785,-500.0,0.00019178,2]
[338436548,1726637450796,-162.081552,0.00019178,2]
[338436549,1726637450807,-500.0,0.00019178,2]
[338436550,1726637450819,-500.0,0.00019178,2]
[338436551,1726637450830,-500.0,0.00019178,2]
[338436552,1726637450841,-500.0,0.00019178,2]
[338436553,1726637450855,-500.0,0.00019178,2]
[338436554,1726637450865,-500.0,0.00019178,2]
[338436555,1726637450875,-500.0,0.00019178,2]
[338436556,1726637450885,-500.0,0.00019178,2]
[338436557,1726637450894,-500.0,0.00019178,2]
[338436558,1726637450904,-169.53195245,0.00019178,2]
[338436559,1726637450914,-500.0,0.00019178,2]
[338436560,1726637450923,-857.8,0.00019178,2]
[338436561,1726637450933,-2592.62,0.00019178,2]
[338436562,1726637450942,-500.0,0.00019178,2]
[338436563,1726637450951,-2368.01,0.00019178,2]
[338436564,1726637450961,-761.96,0.00019178,2]
[338436565,1726637450969,-500.0,0.00019178,2]
[338436566,1726637450979,-500.0,0.00019178,2]
[338436567,1726637450988,-2589.44,0.00019178,2]
[338436568,1726637450997,-500.0,0.00019178,2]
[338436569,1726637451006,-782.26,0.00019178,2]
[338436570,1726637451017,-1410.58,0.00019178,2]
[338436571,1726637451027,-500.0,0.00019178,2]
[338436572,1726637451036,-500.0,0.00019178,2]
[338436573,1726637451045,-607.19,0.00019178,2]
[338436574,1726637451055,-4692.27,0.00019178,2]
[338436575,1726637451064,-1426.45,0.00019178,2]
[338436576,1726637451074,-296.28077995,0.00019178,2]
[338436577,1726637451083,-602.88926032,0.00019178,2]
[338436578,1726637451092,-532.45933118,0.00019178,2]
[338436579,1726637451101,-500.0,0.00019178,2]
[338436580,1726637451111,-500.0,0.00019178,2]
[338436581,1726637451120,-500.0,0.00019178,2]
[338436582,1726637451129,-500.0,0.00019178,2]
[338436583,1726637451138,-500.0,0.00019178,2]
[338436584,1726637451147,-500.0,0.00019178,2]
[338436585,1726637451157,-500.0,0.00019178,2]
[338436586,1726637451166,-152.043162,0.00019178,2]
[338436587,1726637451175,-500.0,0.00019178,2]
[338436588,1726637451185,-500.0,0.00019178,2]
[338436589,1726637451194,-500.0,0.00019178,2]
[338436590,1726637451203,-500.0,0.00019178,2]
[338436591,1726637451212,-500.0,0.00019178,2]
[338436592,1726637451222,-500.0,0.00019178,2]
[338436593,1726637451231,-500.0,0.00019178,2]
[338436594,1726637451241,-2238.04,0.00019178,2]
[338436595,1726637451252,-500.0,0.00019178,2]
[338436596,1726637451262,-500.0,0.00019178,2]
[338436597,1726637451273,-500.0,0.00019178,2]
[338436598,1726637451284,-1168.88,0.00019178,2]
[338436599,1726637451294,-500.0,0.00019178,2]
[338436600,1726637451304,-500.0,0.00019178,2]
[338436601,1726637451315,-500.0,0.00019178,2]
[338436602,1726637451326,-391.66560742,0.00019178,2]
[338436603,1726637451337,-152.043162,0.00019178,2]
[338436604,1726637451347,-765.58,0.00019178,2]
[338436605,1726637451358,-500.0,0.00019178,2]
[338436606,1726637451368,-500.0,0.00019178,2]
[338436607,1726637451378,-1879.22,0.00019178,2]
[338436608,1726637451388,-2690.53,0.00019178,2]
[338436609,1726637451398,-500.0,0.00019178,2]
[338436610,1726637451409,-2145.2,0.00019178,2]
[338436611,1726637451419,-2131.68,0.00019178,2]
[338436612,1726637451429,-500.0,0.00019178,2]
[338436613,1726637451439,-500.0,0.00019178,2]
[338436614,1726637451450,-523.06,0.00019178,2]
[338436615,1726637451460,-3535.4,0.00019178,2]
[338436616,1726637451470,-501.37750576,0.00019178,2]
[338436617,1726637451480,-500.0,0.00019178,2]
[338436618,1726637451490,-1364.46,0.00019178,2]
[338436619,1726637451501,-151.0,0.00019178,2]
[338436620,1726637451512,-500.0,0.00019178,2]
[338436621,1726637451523,-1063.76,0.00019178,2]
[338436622,1726637451533,-500.0,0.00019178,2]
[338436623,1726637451543,-500.0,0.00019178,2]
[338436624,1726637451555,-939.51,0.00019178,2]
[338436625,1726637451565,-4139.49,0.00019178,2]
[338436626,1726637451576,-1295.28,0.00019178,2]
[338436627,1726637451585,-500.0,0.00019178,2]
[338436628,1726637451595,-151.0,0.00019178,2]
[338436629,1726637451605,-2316.71,0.00019178,2]
[338436630,1726637451617,-500.0,0.00019178,2]
[338436631,1726637451629,-500.0,0.00019178,2]
[338436632,1726637451640,-1687.74,0.00019178,2]
[338436633,1726637451651,-86345.18,0.00019178,2]
[338436634,1726637451661,-500.0,0.00019178,2]
[338436635,1726637451671,-681.31,0.00019178,2]
[338436636,1726637451682,-631.13,0.00019178,2]
[338436637,1726637451691,-166.425611,0.00019178,2]
[338436638,1726637451702,-164.4218,0.00019178,2]
[338436639,1726637451711,-1515.011366,0.00019178,2]
[338436640,1726637451721,-150.112233,0.000192,2]
[338436641,1726637451732,-155.367408,0.000192,2]
[338436642,1726637451741,-154.0899291,0.000192,2]
[338436643,1726637451751,-153.0,0.000192,2]
[338436644,1726637451760,-153.0,0.000192,2]